bitfinex/quotes_ETHUSD_20251201
["timestamp","ask_amount","ask_price","bid_price","bid_amount"]
[1764559560669,3.5308688,2833.8,2833.2,0.47106332]
[1764559561058,0.002,2833.8,2833.3,3.52945328]
[1764559561273,0.002,2833.8,2833.7,0.3696]
[1764559563462,0.002,2833.8,2833.7,12.44315476]
[1764559563666,0.002,2833.8,2833.7,14.04037754]
[1764559564280,0.002,2833.8,2833.7,5.86537785]
[1764559564576,0.002,2833.8,2833.7,4.26815507]
[1764559565875,0.002,2833.8,2833.7,0.3696]
[1764559566078,0.4959,2833.8,2833.1,0.0921]
[1764559566253,0.002,2833.8,2833.7,0.3696]
[1764559566775,0.002,2833.8,2833.7,0.7392]
[1764559566954,0.002,2833.8,2833.2,1.09519411]
[1764559567161,0.002,2833.8,2833.7,0.3696]
[1764559567579,0.4959,2833.8,2833.3,0.82466737]
[1764559567747,0.4959,2833.8,2833.2,0.72559411]
[1764559567748,0.4959,2833.8,2833.2,3.52957764]
[1764559567953,1.32407631,2833.8,2833.1,0.0921]
[1764559568148,0.4275,2833.2,2833.0,0.001]
[1764559568359,0.6545,2833.2,2833.0,0.001]
[1764559568674,0.002,2833.8,2833.1,0.4617]
[1764559568879,0.227,2833.4,2833.1,0.4617]
[1764559569084,0.227,2833.4,2833.0,0.001]
[1764559569785,3.75641557,2833.4,2833.0,0.001]
[1764559570148,7.76333114,2833.4,2833.0,0.001]
[1764559570480,7.28583114,2833.4,2833.0,0.001]
[1764559570679,0.4939,2833.1,2833.0,0.001]
[1764559571062,0.9714,2833.1,2833.0,0.001]
[1764559571986,7.05825282,2833.6,2833.0,0.3706]
[1764559572151,0.227,2833.3,2833.0,0.001]
[1764559572356,7.05825282,2833.6,2833.1,0.0921]
[1764559572648,0.227,2833.5,2833.2,0.3696]
[1764559573055,7.05825282,2833.6,2833.2,0.3696]
[1764559573255,0.227,2833.5,2833.2,0.3696]
[1764559573766,3.52957786,2833.2,2833.0,0.001]
[1764559573982,0.7202,2833.1,2833.0,0.001]
[1764559574160,3.52957786,2833.2,2833.0,0.001]
[1764559574365,0.227,2833.1,2833.0,0.001]
[1764559576092,3.75670244,2833.1,2833.0,0.001]
[1764559576267,4.72810244,2833.1,2833.0,0.001]
[1764559577897,0.227,2833.1,2833.0,0.001]
[1764559578092,7.88645892,2833.6,2833.0,0.3706]
[1764559578291,0.227,2833.5,2833.0,0.001]
[1764559578595,0.7045,2833.5,2833.0,0.001]
[1764559578774,7.05828261,2833.6,2833.0,0.001]
[1764559578980,0.227,2833.4,2833.0,0.001]
[1764559579374,7.40895892,2833.6,2833.0,0.001]
[1764559579586,0.227,2833.5,2833.0,0.001]
[1764559579901,3.52907961,2833.6,2833.0,0.001]
[1764559579902,0.227,2833.4,2833.1,0.0921]
[1764559581793,3.75635598,2833.4,2833.0,0.001]
[1764559581989,4.23385598,2833.4,2833.0,0.39115885]
[1764559582204,3.75635598,2833.4,2833.0,0.39115885]
[1764559582404,0.4775,2833.3,2833.0,0.39115885]
[1764559582701,0.4775,2833.3,2833.0,0.001]
[1764559582702,0.4939,2833.1,2833.0,0.001]
[1764559582903,0.4775,2833.3,2833.0,0.001]
[1764559583304,3.75635598,2833.4,2833.0,0.001]
[1764559584003,0.4952,2833.1,2833.0,0.001]
[1764559585481,0.4756,2833.3,2833.0,0.001]
[1764559586097,3.52957786,2833.2,2833.0,0.001]
[1764559586297,4.00509388,2833.3,2833.0,0.001]
[1764559587380,7.53458776,2833.3,2833.0,0.001]
[1764559587582,0.4756,2833.3,2833.0,0.001]
[1764559588109,0.4668,2833.1,2833.0,0.001]
[1764559589111,0.9613,2833.1,2833.0,0.001]
[1764559589297,0.4668,2833.1,2833.0,0.001]
[1764559590324,4.49100244,2833.1,2833.0,0.001]
[1764559594034,3.99650244,2833.1,2833.0,0.001]
[1764559594532,0.4668,2833.1,2833.0,0.001]
[1764559595612,3.99650244,2833.1,2833.0,0.001]
[1764559596911,4.49100244,2833.1,2833.0,0.001]
[1764559597410,5.64373747,2833.1,2833.0,0.001]
[1764559597935,6.77483558,2833.1,2833.0,0.001]
[1764559598135,1.13109811,2833.0,2832.9,0.001]
[1764559598337,10.4641978,2833.0,2832.7,0.001]
[1764559598514,2.13157442,2832.8,2832.7,0.001]
[1764559598709,5.66165066,2832.8,2832.7,0.001]
[1764559598907,6.15615066,2832.8,2832.7,0.001]
[1764559608361,5.66165066,2832.8,2832.7,0.001]
[1764559608657,3.75707624,2832.8,2832.7,0.3726]
[1764559608855,4.94947035,2832.8,2832.7,0.001]
[1764559609057,4.48267035,2832.8,2832.7,0.001]
[1764559609250,4.94947035,2832.8,2832.7,0.001]
[1764559609429,5.30014666,2832.8,2832.7,0.001]
[1764559609633,4.94947035,2832.8,2832.7,0.001]
[1764559610352,5.30014666,2832.8,2832.7,0.001]
[1764559610550,4.83334666,2832.8,2832.7,0.001]
[1764559610754,4.48267035,2832.8,2832.7,0.3726]
[1764559611148,3.52995163,2832.9,2832.7,0.3726]
[1764559611340,3.52949484,2833.3,2832.8,0.7432]
[1764559611341,7.05890656,2833.3,2832.8,0.7432]
[1764559611558,0.95459411,2833.2,2832.9,0.3716]
[1764559611759,0.72759411,2833.2,2832.9,0.3716]
[1764559611967,0.227,2833.1,2832.9,0.3716]
[1764559612370,0.227,2833.1,2833.0,0.3716]
[1764559612686,3.75670244,2833.1,2833.0,0.3716]
[1764559612985,7.28640488,2833.1,2832.7,0.001]
[1764559613781,0.4782,2832.8,2832.7,0.001]
[1764559613983,0.677,2832.8,2832.7,0.001]
[1764559614152,1.02767631,2832.8,2832.7,0.001]
[1764559614358,0.6586,2833.0,2832.7,0.001]
[1764559614559,1.00927631,2833.0,2832.7,0.001]
[1764559614759,2.21465868,2833.0,2832.7,0.001]
[1764559614979,7.05990326,2832.9,2832.7,0.001]
[1764559615590,7.05990326,2832.9,2832.6,0.001]
[1764559615591,0.75618031,2832.7,2832.6,0.001]
[1764559615807,0.953504,2832.5,2832.2,0.001]
[1764559615960,1.23178031,2832.3,2832.2,0.001]
[1764559616162,0.75618031,2832.0,2831.9,0.001]
[1764559616484,0.4753,2832.0,2831.1,0.001]
[1764559616685,0.99507631,2831.4,2831.1,0.001]
[1764559616984,1.22207631,2831.4,2831.1,0.001]
[1764559617160,5.93929213,2831.4,2831.1,0.001]
[1764559617361,6.88639095,2831.4,2831.1,0.001]
[1764559617989,7.29189495,2831.4,2831.1,0.001]
[1764559618159,12.81446495,2831.4,2831.1,0.001]
[1764559618363,7.29189495,2831.4,2831.1,0.001]
[1764559618677,11.02948495,2831.4,2831.1,0.001]
[1764559619071,7.29189495,2831.4,2831.1,0.001]
[1764559619485,1.13109811,2831.3,2830.2,0.3356]
[1764559619694,0.35067631,2831.1,2830.2,0.3356]
[1764559619897,0.227,2831.0,2830.2,0.3356]
[1764559620097,0.35067631,2830.7,2830.2,0.3356]
[1764559620398,0.227,2830.6,2830.2,0.3356]
[1764559620600,0.227,2830.6,2830.0,0.0921]
[1764559621100,3.5329447,2830.5,2830.0,0.0921]
[1764559621306,3.5329447,2830.5,2830.4,0.3356]
[1764559622800,3.7599447,2830.5,2830.4,0.3356]
[1764559623108,1.14589882,2831.4,2830.4,0.6712]
[1764559623411,0.6868,2831.2,2830.5,0.3356]
[1764559623704,0.227,2831.1,2830.5,0.3356]
[1764559623881,0.57767631,2831.0,2830.5,0.3356]
[1764559624402,0.227,2830.9,2830.5,0.6712]
[1764559625295,7.06514058,2830.8,2830.5,0.6712]
[1764559625601,0.227,2830.7,2830.5,0.6712]
[1764559625903,0.35067631,2831.4,2830.7,0.3356]
[1764559626104,0.227,2831.3,2831.0,0.3356]
[1764559626305,0.35067631,2831.1,2830.0,0.4277]
[1764559626608,0.405504,2831.2,2830.1,0.3356]
[1764559626810,3.53119813,2831.9,2831.1,0.3987]
[1764559626984,0.227,2831.8,2831.1,0.0631]
[1764559627180,0.72559411,2831.6,2831.2,0.3356]
[1764559627381,0.6586,2832.2,2831.7,0.3356]
[1764559627582,0.1988,2832.5,2831.8,0.3356]
[1764559627779,4.10825108,2832.4,2832.1,0.3356]
[1764559628307,0.4782,2832.2,2831.1,0.0631]
[1764559628493,0.82707631,2831.9,2831.1,0.3987]
[1764559628690,0.227,2831.8,2831.1,0.3987]
[1764559628883,0.82707631,2831.9,2831.1,0.3987]
[1764559629081,0.227,2831.8,2831.1,0.3987]
[1764559629284,3.53144754,2831.7,2831.1,0.3987]
[1764559629487,7.06289508,2831.7,2831.2,0.39310115]
[1764559629687,7.06289508,2831.7,2831.1,0.3987]
[1764559630883,0.002,2831.2,2831.1,0.0631]
[1764559631212,0.002,2831.2,2831.1,7.78089596]
[1764559631516,0.002,2831.2,2831.1,8.11649596]
[1764559632217,0.002,2831.2,2831.1,4.5843]
[1764559632402,0.002,2831.2,2831.1,5.04273]
[1764559636732,0.002,2831.2,2831.1,0.3987]
[1764559636935,0.002,2831.2,2830.9,3.85]
[1764559637132,0.227,2831.1,2830.9,3.85]
[1764559637334,0.227,2831.1,2830.1,3.85]
[1764559637538,0.4782,2831.0,2830.2,1.06119411]
[1764559637704,0.4782,2831.0,2830.2,0.83602941]
[1764559637910,0.4782,2831.0,2830.3,0.03533194]
[1764559638534,0.4782,2831.0,2830.1,3.5334375]
[1764559638535,7.52469102,2830.9,2830.1,3.5334375]
[1764559638741,7.87536733,2830.9,2830.0,0.4287]
[1764559639034,0.35067631,2830.8,2830.0,0.4287]
[1764559639234,0.227,2830.7,2830.0,0.4287]
[1764559639440,0.227,2830.7,2830.0,3.96226168]
[1764559639615,0.227,2830.7,2830.1,0.3356]
[1764559640010,0.227,2830.7,2830.1,0.37093444]
[1764559640207,0.227,2830.7,2830.0,0.0931]
[1764559640412,0.227,2830.7,2830.0,3.62664659]
[1764559640611,3.53281989,2830.6,2830.0,3.96224659]
[1764559641542,3.53281989,2830.6,2830.1,0.03533444]
[1764559642236,3.53281989,2830.6,2830.0,3.62664659]
[1764559642618,3.53281989,2830.6,2830.1,0.03533444]
[1764559643019,3.53281989,2830.6,2830.1,0.37093444]
[1764559643631,3.75974016,2830.7,2830.1,0.37093444]
[1764559645058,0.227,2830.7,2830.1,8.19086282]
[1764559645353,3.53237783,2831.0,2830.6,0.3356]
[1764559645553,0.227,2830.9,2830.6,0.3356]
[1764559646124,0.226,2830.8,2830.6,0.3356]
[1764559646525,3.53225634,2831.1,2830.6,0.3356]
[1764559646727,0.226,2831.0,2830.7,0.3356]
[1764559647141,3.53225634,2831.1,2830.7,0.3356]
[1764559647325,0.226,2830.9,2830.7,0.3356]
[1764559647740,0.4928,2830.8,2830.3,3.85]
[1764559647941,0.84347631,2830.8,2830.3,3.85]
[1764559648141,1.29467631,2830.8,2830.3,3.85]
[1764559650063,3.53269509,2830.7,2830.1,7.38338246]
[1764559650266,3.98389509,2830.7,2830.1,7.38338246]
[1764559651768,3.53258698,2830.8,2830.1,7.38338246]
[1764559652838,3.53258698,2830.8,2830.1,8.41779359]
[1764559653038,0.002,2831.0,2830.7,0.3356]
[1764559653242,0.226,2830.9,2830.8,0.3356]
[1764559653740,0.226,2830.9,2830.4,0.3356]
[1764559654344,0.226,2830.8,2830.4,0.3356]
[1764559656171,0.4928,2830.5,2830.3,3.85]
[1764559656376,4.20982233,2830.8,2830.3,3.85]
[1764559656544,0.4512,2830.7,2830.3,3.85]
[1764559656749,0.4928,2830.4,2830.3,3.85]
[1764559656963,0.7188,2830.4,2830.1,3.85]
[1764559657371,0.226,2830.4,2830.1,7.38344243]
[1764559659475,0.226,2830.4,2830.1,7.38344074]
[1764559659676,0.226,2830.4,2830.3,0.3356]
[1764559660077,0.7188,2830.4,2830.1,3.85]
[1764559660312,0.4704,2830.2,2830.1,3.85]
[1764559660502,0.4704,2830.2,2830.0,0.001]
[1764559660667,0.9438,2830.1,2830.0,0.001]
[1764559660995,1.29447631,2830.1,2830.0,0.001]
[1764559661196,0.405504,2830.0,2829.8,0.001]
[1764559661355,1.22877631,2829.9,2829.8,0.001]
[1764559661566,2.17602216,2829.9,2829.8,0.001]
[1764559661761,2.62722216,2829.9,2829.8,0.001]
[1764559662581,2.27654585,2829.9,2829.8,0.001]
[1764559663159,1.41684585,2829.9,2829.8,0.001]
[1764559663471,0.226,2829.9,2829.8,0.001]
[1764559664281,0.226,2829.9,2829.8,0.6742]
[1764559664649,3.53312204,2830.4,2829.8,0.6742]
[1764559664886,3.53312204,2830.4,2830.0,0.001]
[1764559665060,0.226,2830.3,2830.0,0.001]
[1764559665381,3.75924572,2830.3,2830.0,0.001]
[1764559665754,0.4928,2830.1,2830.0,0.001]
[1764559665950,0.7188,2830.1,2830.0,0.001]
[1764559667470,0.226,2830.1,2830.0,0.001]
[1764559667671,0.7188,2830.1,2830.0,0.001]
[1764559668476,0.226,2830.1,2830.0,0.001]
[1764559670079,0.226,2830.1,2830.0,0.3376]
[1764559670384,3.53282456,2830.6,2830.0,0.3376]
[1764559670568,3.53270592,2830.7,2830.5,0.3366]
[1764559670772,3.53270592,2830.7,2830.1,0.51086]
[1764559670773,0.226,2830.6,2830.1,0.0921]
[1764559671273,0.226,2830.6,2830.1,0.4287]
[1764559671963,0.226,2830.6,2830.1,0.0921]
[1764559671964,3.75882899,2830.6,2830.1,0.0921]
[1764559672281,0.4928,2830.2,2830.0,0.001]
[1764559672588,0.7188,2830.1,2829.8,0.001]
[1764559672883,0.80837631,2829.9,2829.8,0.001]
[1764559673180,1.03437631,2829.9,2829.8,0.001]
[1764559673366,1.48937631,2829.9,2829.8,0.001]
[1764559674067,5.74866419,2829.9,2829.8,0.001]
[1764559674267,6.67688786,2829.9,2829.8,0.001]
[1764559677289,7.08239186,2829.9,2829.8,0.001]
[1764559678962,27.53083886,2829.9,2829.8,0.001]
[1764559679489,23.81832742,2829.6,2829.5,0.001]
[1764559679654,32.56361577,2829.6,2829.5,0.001]
[1764559679860,31.6983302,2829.6,2829.5,0.001]
[1764559680055,35.23239861,2829.6,2829.5,0.001]
[1764559680305,8.87750826,2829.6,2829.5,0.001]
[1764559680519,6.55813726,2829.6,2829.5,0.001]
[1764559680696,11.16927226,2829.6,2829.5,0.001]
[1764559680992,10.25051726,2829.6,2829.5,0.001]
[1764559681290,10.25051726,2829.6,2829.0,0.001]
[1764559681291,0.85618031,2829.1,2829.0,0.001]
[1764559681460,0.35067631,2828.9,2828.8,0.001]
[1764559681660,0.88587631,2828.9,2828.8,0.001]
[1764559681961,1.44087631,2828.9,2828.8,0.001]
[1764559682186,6.28671477,2828.9,2828.8,0.001]
[1764559682388,14.83122977,2828.9,2828.8,0.001]
[1764559682661,10.62771146,2828.9,2828.8,0.001]
[1764559682914,0.72559411,2828.9,2828.8,0.001]
[1764559683112,0.226,2828.9,2828.8,0.3396]
[1764559683484,3.53408186,2829.6,2829.2,0.001]
[1764559683690,3.53394814,2829.7,2829.2,0.001]
[1764559683903,0.226,2829.6,2829.2,0.001]
[1764559684311,7.06838664,2829.5,2829.2,0.001]
[1764559684910,0.226,2829.6,2829.2,0.001]
[1764559685208,3.76009989,2829.6,2829.2,0.001]
[1764559685604,0.226,2829.5,2829.2,0.3396]
[1764559685811,0.226,2829.5,2829.2,0.001]
[1764559686908,0.226,2829.5,2828.8,0.001]
[1764559686909,1.13109811,2829.2,2828.8,0.001]
[1764559687206,0.35067631,2828.6,2828.3,0.001]
[1764559687395,0.75618031,2828.4,2828.3,0.001]
[1764559687595,1.21388031,2828.4,2828.3,0.001]
[1764559687911,1.85836834,2828.4,2828.3,0.001]
[1764559688714,6.11953026,2828.4,2828.3,0.001]
[1764559688915,9.84153026,2828.4,2828.3,0.001]
[1764559689079,6.11953026,2828.4,2828.3,0.001]
[1764559689284,6.34553026,2828.4,2828.3,0.001]
[1764559691887,6.44553026,2828.4,2828.3,0.001]
[1764559692087,12.35174626,2828.4,2828.3,0.001]
[1764559692430,6.44553026,2828.4,2828.3,0.001]
[1764559692638,15.51839226,2828.4,2828.3,0.001]
[1764559692992,13.77224326,2828.4,2828.3,0.001]
[1764559693487,11.34285326,2828.4,2828.3,0.001]
[1764559694616,11.44285326,2828.4,2828.3,0.001]
[1764559695339,11.34285326,2828.4,2828.3,0.001]
[1764559695492,6.34553026,2828.4,2828.3,0.001]
[1764559695691,8.55009626,2828.4,2828.3,0.001]
[1764559695917,6.34553026,2828.4,2828.3,0.001]
[1764559696314,3.95105584,2828.4,2828.3,0.001]
[1764559696485,5.94002626,2828.4,2828.3,0.001]
[1764559696691,5.21443215,2828.4,2828.3,0.001]
[1764559696890,6.34553026,2828.4,2828.3,0.001]
[1764559703453,4.45064995,2828.4,2828.3,0.001]
[1764559703604,4.11224412,2828.4,2828.3,0.3426]
[1764559703804,3.76156781,2828.4,2828.3,0.3426]
[1764559704233,5.31793823,2828.4,2828.3,0.001]
[1764559704546,5.14650006,2828.4,2828.3,0.001]
[1764559704731,5.37250006,2828.4,2828.3,0.001]
[1764559704906,5.72317637,2828.4,2828.3,0.001]
[1764559706867,4.11224412,2828.4,2828.3,0.001]
[1764559707163,1.30117264,2829.5,2828.3,0.001]
[1764559707164,0.226,2828.6,2828.3,0.6842]
[1764559707326,0.226,2828.6,2828.4,0.3416]
[1764559707512,0.226,2828.6,2828.5,0.3416]
[1764559707928,0.226,2828.6,2828.5,0.6832]
[1764559708122,0.684,2828.6,2828.3,0.001]
[1764559708546,0.80867631,2828.4,2828.3,0.001]
[1764559708921,5.06983823,2828.4,2828.3,0.001]
[1764559709138,6.37238675,2828.4,2828.3,0.001]
[1764559709512,5.91438675,2828.4,2828.3,0.001]
[1764559709730,5.56371044,2828.4,2828.3,0.001]
[1764559709938,5.91438675,2828.4,2828.3,0.001]
[1764559710536,4.26116192,2828.4,2828.3,0.3426]
[1764559710734,4.61183823,2828.4,2828.3,0.001]
[1764559710949,4.26116192,2828.4,2828.3,0.3426]
[1764559711146,0.72559411,2828.4,2828.3,0.3426]
[1764559711345,0.72559411,2828.4,2828.3,0.6842]
[1764559711346,0.226,2828.4,2828.3,0.6842]
[1764559713631,7.06863646,2829.4,2828.3,8.18439677]
[1764559713938,0.226,2829.3,2828.4,0.3416]
[1764559714136,0.226,2829.3,2828.3,0.42981115]
[1764559714451,0.226,2829.3,2828.4,0.3416]
[1764559714653,0.35067631,2829.1,2828.4,0.3416]
[1764559714846,0.226,2829.3,2828.5,0.43070799]
[1764559715042,0.226,2829.3,2829.0,0.3416]
[1764559715243,0.226,2829.3,2829.2,0.5241]
[1764559715448,3.76044314,2829.3,2829.2,0.5241]
[1764559715649,3.76044314,2829.3,2829.2,0.8657]
[1764559716031,3.76044314,2829.3,2829.2,0.5241]
[1764559716229,4.11111945,2829.3,2829.2,0.5241]
[1764559716451,7.29488628,2829.3,2828.8,0.3416]
[1764559716681,7.29488628,2829.3,2828.5,0.77230799]
[1764559716682,10.82932942,2829.3,2828.5,0.77230799]
[1764559716856,0.72559411,2829.2,2828.3,0.001]
[1764559717030,0.35067631,2829.1,2828.3,0.001]
[1764559717230,0.35067631,2828.9,2828.3,0.001]
[1764559717457,3.53519284,2828.7,2828.3,0.001]
[1764559717654,3.53485614,2829.0,2828.3,0.3426]
[1764559717854,0.226,2828.9,2828.3,0.3426]
[1764559718161,0.226,2828.9,2828.4,0.74151964]
[1764559718354,0.226,2828.9,2828.8,0.3416]
[1764559718926,0.226,2828.9,2828.8,0.6832]
[1764559719758,3.76094291,2828.9,2828.8,0.3416]
[1764559720236,0.72559411,2829.0,2828.8,0.3416]
[1764559720442,0.002,2829.1,2829.0,0.3416]
[1764559720761,3.76269301,2829.1,2829.0,0.3416]
[1764559721649,3.76269301,2829.1,2829.0,0.6832]
[1764559722569,3.76269301,2829.1,2829.0,0.3416]
[1764559723861,7.75538602,2829.1,2828.5,3.85]
[1764559724033,3.76269301,2829.1,2829.0,0.3416]
[1764559724435,0.228,2829.1,2829.0,0.3416]
[1764559724977,0.002,2829.1,2829.0,0.6832]
[1764559725334,0.002,2829.1,2829.0,0.3416]
[1764559726559,0.002,2829.1,2829.0,0.6832]
[1764559727061,0.002,2829.1,2829.0,0.3416]
[1764559727449,0.002,2829.1,2829.0,0.6832]
[1764559728042,0.002,2829.1,2829.0,1.10855917]
[1764559729042,0.002,2829.1,2829.0,4.64337712]
[1764559729464,0.002,2829.1,2829.0,16.68096547]
[1764559730470,0.002,2830.6,2829.1,0.3416]
[1764559730647,0.002,2831.4,2829.1,0.3416]
[1764559730648,0.002,2831.4,2831.1,0.3376]
[1764559730846,0.002,2831.4,2830.7,8.74119251]
[1764559730847,0.002,2831.4,2831.2,11.05562549]
[1764559731037,0.002,2831.4,2831.2,10.03038662]
[1764559731239,0.002,2831.4,2831.3,0.72559411]
[1764559731441,0.002,2831.4,2831.3,1.70799866]
[1764559731652,0.002,2831.4,2831.3,0.3356]
[1764559732366,0.002,2831.4,2831.3,0.6712]
[1764559732835,0.002,2831.4,2830.9,0.226]
[1764559733038,0.002,2831.4,2831.0,3.53228855]
[1764559733460,0.002,2831.4,2831.0,3.86788855]
[1764559733656,0.002,2831.4,2830.5,0.0881]
[1764559733858,0.002,2831.4,2830.7,0.72559411]
[1764559734069,0.002,2831.4,2830.8,3.53257029]
[1764559734866,0.002,2831.4,2830.7,3.53266405]
[1764559735040,0.002,2831.4,2830.8,0.3356]
[1764559735236,0.002,2831.4,2830.9,0.38682641]
[1764559735943,0.002,2831.4,2831.3,0.001]
[1764559736548,0.002,2831.4,2831.3,0.3366]
[1764559736867,0.002,2831.4,2831.3,0.6722]
[1764559738176,0.002,2831.4,2831.3,14.07643707]
[1764559738350,0.002,2831.4,2831.3,15.80759154]
[1764559738553,0.002,2831.4,2831.3,16.03359154]
[1764559740081,0.002,2831.4,2831.3,2.47325847]
[1764559740277,0.002,2831.4,2831.3,0.001]
[1764559740748,0.4643,2831.4,2831.3,0.001]
[1764559740949,0.9545,2831.4,2831.3,0.001]
[1764559741459,0.4643,2831.4,2831.3,0.001]
[1764559741775,0.002,2831.4,2831.3,0.001]
[1764559742149,0.002,2831.4,2831.3,0.3366]
[1764559742371,0.002,2831.4,2831.3,0.001]
[1764559742678,0.9545,2831.4,2831.3,0.001]
[1764559742980,1.30517631,2831.4,2831.3,0.001]
[1764559744584,5.21191582,2831.4,2831.3,0.001]
[1764559744754,6.49502126,2831.4,2831.3,0.001]
[1764559746379,4.72171582,2831.4,2831.3,0.001]
[1764559746560,5.21191582,2831.4,2831.3,0.001]
[1764559746883,4.72171582,2831.4,2831.3,0.001]
[1764559747255,5.56259213,2831.4,2831.3,0.001]
[1764559747651,4.25941582,2831.4,2831.3,0.001]
[1764559747857,6.01402732,2831.4,2831.3,0.001]
[1764559748987,6.36470363,2831.4,2831.3,0.001]
[1764559749290,5.52382732,2831.4,2831.3,0.001]
[1764559749586,6.01402732,2831.4,2831.3,0.001]
[1764559750163,4.72171582,2831.4,2831.3,0.001]
[1764559750364,4.25941582,2831.4,2831.3,0.001]
[1764559750565,4.72171582,2831.4,2831.3,0.001]
[1764559750887,5.21191582,2831.4,2831.3,0.001]
[1764559752974,4.72171582,2831.4,2831.3,0.001]
[1764559753174,0.002,2831.4,2831.3,0.3366]
[1764559753375,0.002,2831.4,2831.3,0.001]
[1764559753892,0.002,2831.4,2831.3,0.6722]
[1764559754096,0.002,2831.4,2831.3,0.3366]
[1764559754264,4.48632171,2831.4,2831.3,0.001]
[1764559754468,5.90026822,2831.4,2831.3,0.001]
[1764559755391,5.54959191,2831.4,2831.3,0.001]
[1764559756395,4.71232171,2831.4,2831.3,0.001]
[1764559756594,0.228,2831.4,2831.3,0.3366]
[1764559756981,0.002,2831.4,2831.3,0.3366]
[1764559757663,4.72171582,2831.4,2831.3,0.001]
[1764559757895,5.61741982,2831.4,2831.3,0.001]
[1764559758091,6.91847865,2831.4,2831.3,0.001]
[1764559758494,6.16229834,2831.4,2831.3,0.001]
[1764559758673,6.51297465,2831.4,2831.3,0.001]
[1764559759284,4.25941582,2831.4,2831.3,0.001]
[1764559760000,5.21191582,2831.4,2831.3,0.001]
[1764559760164,5.56259213,2831.4,2831.3,0.001]
[1764559760367,4.72171582,2831.4,2831.3,0.001]
[1764559761596,5.21191582,2831.4,2831.3,0.001]
[1764559761770,6.12174524,2831.4,2831.3,0.001]
[1764559761969,6.47242155,2831.4,2831.3,0.001]
[1764559762180,6.12174524,2831.4,2831.3,0.001]
[1764559762580,0.405504,2831.3,2831.0,0.001]
[1764559762793,0.82057631,2831.1,2831.0,0.001]
[1764559763092,1.30297631,2831.1,2831.0,0.001]
[1764559763867,5.56076638,2831.1,2831.0,0.001]
[1764559764064,6.49265049,2831.1,2831.0,0.001]
[1764559764967,6.14197418,2831.1,2831.0,0.001]
[1764559765296,6.49265049,2831.1,2831.0,0.001]
[1764559767708,0.002,2831.4,2831.0,0.3376]
[1764559767993,0.226,2831.3,2831.1,0.3366]
[1764559768498,0.57667631,2831.3,2831.0,0.001]
[1764559768666,0.4888,2831.1,2831.0,0.001]
[1764559768998,0.83947631,2831.1,2831.0,0.001]
[1764559769298,1.32017631,2831.1,2831.0,0.001]
[1764559770280,4.85237227,2831.1,2831.0,0.001]
[1764559770489,6.43901114,2831.1,2831.0,0.001]
[1764559771695,6.84451514,2831.1,2831.0,0.001]
[1764559775369,5.95831114,2831.1,2831.0,0.001]
[1764559775570,5.09726638,2831.1,2831.0,0.001]
[1764559776063,5.57796638,2831.1,2831.0,0.001]
[1764559776468,5.09726638,2831.1,2831.0,0.001]
[1764559776737,4.25779007,2831.1,2831.0,0.001]
[1764559776913,4.60846638,2831.1,2831.0,0.001]
[1764559777372,5.93392055,2831.1,2831.0,0.001]
[1764559777882,6.41462055,2831.1,2831.0,0.001]
[1764559779079,4.60846638,2831.1,2831.0,0.001]
[1764559779284,5.57796638,2831.1,2831.0,0.001]
[1764559779506,5.22729007,2831.1,2831.0,0.001]
[1764559779684,5.57796638,2831.1,2831.0,0.001]
[1764559782418,4.25779007,2831.1,2831.0,0.001]
[1764559783213,4.25779007,2831.1,2831.0,0.3376]
[1764559783812,4.25779007,2831.1,2831.0,0.001]
[1764559783988,6.37955337,2831.1,2831.0,0.001]
[1764559788723,6.88505737,2831.1,2831.0,0.001]
[1764559788926,24.58735037,2831.1,2831.0,0.001]
[1764559789223,1.17627042,2830.8,2830.7,0.001]
[1764559789520,17.59322841,2830.8,2830.7,0.001]
[1764559789718,14.72377741,2830.8,2830.7,0.001]
[1764559789919,13.1578331,2830.8,2830.7,0.001]
[1764559790120,12.24298941,2830.8,2830.7,0.001]
[1764559790704,12.64849341,2830.8,2830.7,0.001]
[1764559790905,21.75599341,2830.8,2830.7,0.001]
[1764559791202,13.59787641,2830.8,2830.7,0.001]
[1764559791803,22.35342141,2830.8,2830.7,0.001]
[1764559792015,21.00670941,2830.8,2830.7,0.001]
[1764559792500,12.25320741,2830.8,2830.7,0.001]
[1764559792914,24.41561441,2830.8,2830.7,0.001]
[1764559793116,23.13575741,2830.8,2830.7,0.001]
[1764559793809,24.32132041,2830.8,2830.7,0.001]
[1764559794014,24.42132041,2830.8,2830.7,0.001]
[1764559794819,7.97722841,2830.8,2830.7,0.001]
[1764559795028,33.80954541,2830.8,2830.7,0.001]
[1764559795323,33.43324441,2830.8,2830.7,0.001]
[1764559795625,7.5265521,2830.8,2830.7,0.001]
[1764559795792,3.53257029,2830.8,2830.7,0.001]
[1764559795996,4.1092466,2830.8,2830.7,0.001]
[1764559796296,4.83484071,2830.8,2830.7,0.001]
[1764559797122,3.75857029,2830.8,2830.7,0.3386]
[1764559797497,4.83484071,2830.8,2830.7,0.3386]
[1764559798824,4.60884071,2830.8,2830.7,0.3386]
[1764559799122,4.4841644,2830.8,2830.7,0.3386]
[1764559799499,4.4841644,2830.8,2830.7,0.6762]